[Event "Titled Tuesday Blitz January 17 Early 2023"]
[White "Santos Flores, Alberto"]
[Black "Paichadze, Luka"]
[WhiteFideId "3601234"]
[BlackFideId "13602934"]
[WhiteElo "2164"]
[BlackElo "2515"]
[Result "0-1"]
[Round "03"]
[TimeControl "180+2"]
[Date "2023.01.17"]
[WhiteClock "0:00:10"]
[BlackClock "0:01:11"]

1. e4 {[%clk 0:03:00]}  c6 {[%clk 0:03:00]} 2. d4 {[%clk 0:03:00]}  d5 {[%clk 0:03:01]} 3. Nc3 {[%clk 0:03:00]}  dxe4 {[%clk 0:03:02]} 4. Nxe4 {[%clk 0:03:00]}  Nf6 {[%clk 0:03:01]} 5. Nxf6+ {[%clk 0:03:01]}  gxf6 {[%clk 0:03:01]} 6. Bc4 {[%clk 0:02:56]}  Bf5 {[%clk 0:02:59]} 7. Nf3 {[%clk 0:02:53]}  Nd7 {[%clk 0:02:58]} 8. O-O {[%clk 0:02:52]}  Rg8 {[%clk 0:02:57]} 9. Re1 {[%clk 0:02:47]}  Qc7 {[%clk 0:02:54]} 10. Nh4 {[%clk 0:02:31]}  Bg4 {[%clk 0:02:52]} 11. Be2 {[%clk 0:02:30]}  Bxe2 {[%clk 0:02:49]} 12. Qxe2 {[%clk 0:02:28]}  O-O-O {[%clk 0:02:48]} 13. Qh5 {[%clk 0:02:19]}  e5 {[%clk 0:02:48]} 14. Qxf7 {[%clk 0:02:14]}  Rg7 {[%clk 0:02:47]} 15. Qe6 {[%clk 0:02:10]}  Re7 {[%clk 0:02:36]} 16. Qh3 {[%clk 0:02:03]}  exd4 {[%clk 0:02:36]} 17. Rxe7 {[%clk 0:01:56]}  Bxe7 {[%clk 0:02:37]} 18. Nf5 {[%clk 0:01:56]}  Bc5 {[%clk 0:02:30]} 19. g3 {[%clk 0:01:47]}  Ne5 {[%clk 0:02:12]} 20. Bf4 {[%clk 0:01:16]}  Qd7 {[%clk 0:02:09]} 21. Rd1 {[%clk 0:00:50]}  b6 {[%clk 0:01:44]} 22. a3 {[%clk 0:00:47]}  Kb7 {[%clk 0:01:34]} 23. b4 {[%clk 0:00:46]}  Nf3+ {[%clk 0:01:32]} 24. Kf1 {[%clk 0:00:29]}  Bf8 {[%clk 0:01:32]} 25. Qh5 {[%clk 0:00:27]}  Qd5 {[%clk 0:01:32]} 26. Qxh7+ {[%clk 0:00:13]}  Rd7 {[%clk 0:01:30]} 27. Qh5 {[%clk 0:00:13]}  Ng5 {[%clk 0:01:18]} 28. Kg1 {[%clk 0:00:11]}  Qxf5 {[%clk 0:01:16]} 29. Qe8 {[%clk 0:00:09]}  Nh3+ {[%clk 0:01:13]} 30. Kg2 {[%clk 0:00:10]}  Nxf4+ {[%clk 0:01:13]} 31. gxf4 {[%clk 0:00:10]}  Rg7+ {[%clk 0:01:11]} 0-1


[Site "https://www.chess.com"]

[Event "Titled Tuesday Blitz January 17 Early 2023"]
[White "Bacrot, Etienne"]
[Black "Martin Duque, Jesus"]
[WhiteFideId "605506"]
[BlackFideId "2208954"]
[WhiteElo "2667"]
[BlackElo "2386"]
[Result "0-1"]
[Round "03"]
[TimeControl "180+2"]
[Date "2023.01.17"]
[WhiteClock "0:00:13"]
[BlackClock "0:00:54"]

1. e4 {[%clk 0:03:00]}  c5 {[%clk 0:02:59]} 2. Nf3 {[%clk 0:03:00]}  b6 {[%clk 0:02:58]} 3. d4 {[%clk 0:02:57]}  cxd4 {[%clk 0:02:59]} 4. Nxd4 {[%clk 0:02:57]}  Bb7 {[%clk 0:03:00]} 5. Bd3 {[%clk 0:02:57]}  g6 {[%clk 0:02:58]} 6. O-O {[%clk 0:02:54]}  Bg7 {[%clk 0:02:59]} 7. Nf3 {[%clk 0:02:54]}  Nc6 {[%clk 0:02:59]} 8. Re1 {[%clk 0:02:53]}  Nf6 {[%clk 0:02:58]} 9. Nc3 {[%clk 0:02:50]}  O-O {[%clk 0:02:58]} 10. e5 {[%clk 0:02:48]}  Ne8 {[%clk 0:02:58]} 11. Bg5 {[%clk 0:02:45]}  d6 {[%clk 0:02:55]} 12. e6 {[%clk 0:02:29]}  f5 {[%clk 0:02:55]} 13. Nd5 {[%clk 0:02:23]}  h6 {[%clk 0:02:46]} 14. Bd2 {[%clk 0:02:14]}  Ne5 {[%clk 0:02:45]} 15. Nxe5 {[%clk 0:02:13]}  dxe5 {[%clk 0:02:42]} 16. c4 {[%clk 0:02:03]}  Bxd5 {[%clk 0:02:37]} 17. cxd5 {[%clk 0:02:03]}  Qxd5 {[%clk 0:02:35]} 18. Bc3 {[%clk 0:01:59]}  e4 {[%clk 0:02:33]} 19. Ba6 {[%clk 0:01:56]}  Qxd1 {[%clk 0:02:18]} 20. Rexd1 {[%clk 0:01:57]}  Bxc3 {[%clk 0:02:18]} 21. bxc3 {[%clk 0:01:57]}  Nd6 {[%clk 0:02:18]} 22. a4 {[%clk 0:01:29]}  Kg7 {[%clk 0:02:16]} 23. a5 {[%clk 0:01:29]}  b5 {[%clk 0:02:12]} 24. Rd5 {[%clk 0:01:07]}  Rab8 {[%clk 0:02:10]} 25. Rb1 {[%clk 0:01:06]}  Kf6 {[%clk 0:02:08]} 26. f3 {[%clk 0:01:02]}  Kxe6 {[%clk 0:01:58]} 27. Rc5 {[%clk 0:01:03]}  Rfd8 {[%clk 0:01:47]} 28. Kf2 {[%clk 0:00:57]}  f4 {[%clk 0:01:44]} 29. Ke2 {[%clk 0:00:47]}  exf3+ {[%clk 0:01:41]} 30. gxf3 {[%clk 0:00:41]}  g5 {[%clk 0:01:35]} 31. Rb4 {[%clk 0:00:33]}  Rd7 {[%clk 0:01:26]} 32. Rd4 {[%clk 0:00:18]}  Kf6 {[%clk 0:01:13]} 33. h4 {[%clk 0:00:15]}  e5 {[%clk 0:01:06]} 34. Rd1 {[%clk 0:00:13]}  g4 {[%clk 0:01:03]} 35. Rc6 {[%clk 0:00:13]}  Ke7 {[%clk 0:01:02]} 36. Rc5 {[%clk 0:00:13]}  Ke6 {[%clk 0:01:00]} 37. Rc6 {[%clk 0:00:13]}  gxf3+ {[%clk 0:01:00]} 38. Kxf3 {[%clk 0:00:14]}  Rg8 {[%clk 0:00:59]} 39. Bxb5 {[%clk 0:00:14]}  Rg3+ {[%clk 0:00:59]} 40. Kf2 {[%clk 0:00:14]}  Ke7 {[%clk 0:00:54]} 41. Bf1 {[%clk 0:00:13]}  Ne4+ {[%clk 0:00:54]} 42. Ke1 {[%clk 0:00:13]}  Re3+ {[%clk 0:00:54]} 43. Be2 {[%clk 0:00:13]}  Rxd1+ {[%clk 0:00:54]} 44. Kxd1 {[%clk 0:00:13]}  Nxc3+ {[%clk 0:00:54]} 0-1


[Site "https://www.chess.com"]

[Event "Titled Tuesday Blitz January 17 Early 2023"]
[White "Ahmad, Al Khatib"]
[Black "Harsh Suresh"]
[WhiteFideId "8103178"]
[BlackFideId "45018464"]
[WhiteElo "2344"]
[BlackElo "2298"]
[Result "0-1"]
[Round "03"]
[TimeControl "180+2"]
[Date "2023.01.17"]
[WhiteClock "0:00:06"]
[BlackClock "0:01:29"]

1. Nf3 {[%clk 0:03:00]}  d5 {[%clk 0:02:59]} 2. g3 {[%clk 0:03:00]}  g6 {[%clk 0:02:59]} 3. Bg2 {[%clk 0:03:01]}  Bg7 {[%clk 0:03:00]} 4. O-O {[%clk 0:03:01]}  c5 {[%clk 0:03:00]} 5. d3 {[%clk 0:03:01]}  Nc6 {[%clk 0:03:01]} 6. Nbd2 {[%clk 0:03:01]}  e6 {[%clk 0:03:00]} 7. e4 {[%clk 0:03:01]}  Nge7 {[%clk 0:03:00]} 8. h4 {[%clk 0:02:58]}  O-O {[%clk 0:03:00]} 9. Re1 {[%clk 0:02:58]}  b6 {[%clk 0:02:58]} 10. e5 {[%clk 0:02:51]}  Bb7 {[%clk 0:02:52]} 11. Nf1 {[%clk 0:02:51]}  Qc7 {[%clk 0:02:49]} 12. Bf4 {[%clk 0:02:48]}  d4 {[%clk 0:02:49]} 13. Qd2 {[%clk 0:02:29]}  Rfd8 {[%clk 0:02:39]} 14. Bh6 {[%clk 0:02:20]}  Bh8 {[%clk 0:02:38]} 15. Qg5 {[%clk 0:01:58]}  Nf5 {[%clk 0:02:34]} 16. N1h2 {[%clk 0:01:46]}  Nxh6 {[%clk 0:02:27]} 17. Qxh6 {[%clk 0:01:45]}  Bg7 {[%clk 0:02:27]} 18. Qf4 {[%clk 0:01:43]}  Nb4 {[%clk 0:02:27]} 19. Ng4 {[%clk 0:01:04]}  Nxc2 {[%clk 0:02:21]} 20. Nh6+ {[%clk 0:00:41]}  Bxh6 {[%clk 0:02:20]} 21. Qxh6 {[%clk 0:00:42]}  Bxf3 {[%clk 0:02:21]} 22. Bxf3 {[%clk 0:00:42]}  Rac8 {[%clk 0:02:15]} 23. h5 {[%clk 0:00:32]}  Nxa1 {[%clk 0:02:12]} 24. Kg2 {[%clk 0:00:19]}  Nc2 {[%clk 0:02:05]} 25. Rh1 {[%clk 0:00:17]}  Rd7 {[%clk 0:01:56]} 26. Be4 {[%clk 0:00:15]}  Qxe5 {[%clk 0:01:49]} 27. hxg6 {[%clk 0:00:14]}  fxg6 {[%clk 0:01:28]} 28. Bxg6 {[%clk 0:00:10]}  hxg6 {[%clk 0:01:29]} 29. Qxg6+ {[%clk 0:00:11]}  Rg7 {[%clk 0:01:30]} 30. Qh5 {[%clk 0:00:07]}  Qxh5 {[%clk 0:01:29]} 31. Rxh5 {[%clk 0:00:06]}  Ne1+ {[%clk 0:01:29]} 0-1


[Site "https://www.chess.com"]

[Event "Titled Tuesday Blitz January 17 Early 2023"]
[White "Kopczynski, Michal"]
[Black "Boros, Denes"]
[WhiteFideId "1124200"]
[BlackFideId "722340"]
[WhiteElo "2225"]
[BlackElo "2406"]
[Result "1-0"]
[Round "03"]
[TimeControl "180+2"]
[Date "2023.01.17"]
[WhiteClock "0:01:27"]
[BlackClock "0:02:12"]

1. e4 {[%clk 0:03:00]}  g6 {[%clk 0:03:00]} 2. d4 {[%clk 0:03:01]}  d5 {[%clk 0:03:00]} 3. e5 {[%clk 0:03:00]}  c5 {[%clk 0:03:00]} 4. dxc5 {[%clk 0:03:00]}  Nc6 {[%clk 0:02:58]} 5. f4 {[%clk 0:03:00]}  e6 {[%clk 0:02:56]} 6. Nf3 {[%clk 0:03:00]}  Bxc5 {[%clk 0:02:56]} 7. Nc3 {[%clk 0:03:01]}  Qb6 {[%clk 0:02:54]} 8. Bd3 {[%clk 0:02:58]}  Nh6 {[%clk 0:02:47]} 9. Qe2 {[%clk 0:02:57]}  Nf5 {[%clk 0:02:45]} 10. Bxf5 {[%clk 0:02:56]}  gxf5 {[%clk 0:02:46]} 11. Bd2 {[%clk 0:02:51]}  Qxb2 {[%clk 0:02:40]} 12. Rb1 {[%clk 0:02:43]}  Qxc2 {[%clk 0:02:40]} 13. Rc1 {[%clk 0:02:37]}  Qb2 {[%clk 0:02:33]} 14. Na4 {[%clk 0:02:23]}  Qxa2 {[%clk 0:02:29]} 15. Nxc5 {[%clk 0:02:23]}  b6 {[%clk 0:02:29]} 16. Nxe6 {[%clk 0:02:04]}  fxe6 {[%clk 0:02:24]} 17. Rxc6 {[%clk 0:02:04]}  Ba6 {[%clk 0:02:24]} 18. Rxe6+ {[%clk 0:02:03]}  Kf7 {[%clk 0:02:21]} 19. Ng5+ {[%clk 0:01:59]}  Kg8 {[%clk 0:02:17]} 20. Qh5 {[%clk 0:01:27]}  Qb1+ {[%clk 0:02:12]} 1-0


[Site "https://www.chess.com"]

[Event "Titled Tuesday Blitz January 17 Early 2023"]
[White "Van Foreest, Lucas"]
[Black "Bettalli, Francesco"]
[WhiteFideId "1039792"]
[BlackFideId "2816453"]
[WhiteElo "2556"]
[BlackElo "2252"]
[Result "1-0"]
[Round "03"]
[TimeControl "180+2"]
[Date "2023.01.17"]
[WhiteClock "0:00:49"]
[BlackClock "0:00:25"]

1. g4 {[%clk 0:03:00]}  g6 {[%clk 0:02:52]} 2. Bg2 {[%clk 0:03:00]}  d5 {[%clk 0:02:51]} 3. g5 {[%clk 0:02:57]}  h6 {[%clk 0:02:51]} 4. h4 {[%clk 0:02:57]}  hxg5 {[%clk 0:02:51]} 5. hxg5 {[%clk 0:02:57]}  Rxh1 {[%clk 0:02:52]} 6. Bxh1 {[%clk 0:02:57]}  Qd6 {[%clk 0:02:52]} 7. Nf3 {[%clk 0:02:54]}  e5 {[%clk 0:02:53]} 8. d3 {[%clk 0:02:54]}  Nc6 {[%clk 0:02:49]} 9. Nc3 {[%clk 0:02:54]}  Bg4 {[%clk 0:02:48]} 10. e4 {[%clk 0:02:48]}  d4 {[%clk 0:02:48]} 11. Ne2 {[%clk 0:02:38]}  O-O-O {[%clk 0:02:46]} 12. Nh2 {[%clk 0:02:35]}  Be6 {[%clk 0:02:42]} 13. Ng3 {[%clk 0:02:35]}  Be7 {[%clk 0:02:41]} 14. Bd2 {[%clk 0:02:34]}  Qc5 {[%clk 0:02:38]} 15. a3 {[%clk 0:02:33]}  Qb6 {[%clk 0:02:38]} 16. b4 {[%clk 0:02:29]}  a5 {[%clk 0:02:32]} 17. bxa5 {[%clk 0:02:28]}  Nxa5 {[%clk 0:02:33]} 18. Bf3 {[%clk 0:02:26]}  Qa6 {[%clk 0:02:28]} 19. Kf1 {[%clk 0:02:25]}  Nc6 {[%clk 0:02:28]} 20. Kg2 {[%clk 0:02:24]}  f6 {[%clk 0:02:27]} 21. Bg4 {[%clk 0:02:23]}  Nb8 {[%clk 0:02:25]} 22. a4 {[%clk 0:02:14]}  Nd7 {[%clk 0:02:19]} 23. a5 {[%clk 0:02:13]}  Rf8 {[%clk 0:02:15]} 24. Bxe6 {[%clk 0:01:54]}  Qxe6 {[%clk 0:02:16]} 25. gxf6 {[%clk 0:01:48]}  Ngxf6 {[%clk 0:02:12]} 26. Qe2 {[%clk 0:01:39]}  Rh8 {[%clk 0:01:59]} 27. Rh1 {[%clk 0:01:29]}  Nh5 {[%clk 0:01:49]} 28. Qg4 {[%clk 0:01:22]}  Nf8 {[%clk 0:01:38]} 29. Ra1 {[%clk 0:01:13]}  Nf4+ {[%clk 0:01:33]} 30. Kg1 {[%clk 0:01:09]}  Nh3+ {[%clk 0:01:23]} 31. Kg2 {[%clk 0:01:02]}  Nxf2 {[%clk 0:01:16]} 32. Qxe6+ {[%clk 0:01:00]}  Nxe6 {[%clk 0:01:17]} 33. Nf3 {[%clk 0:00:59]}  Ng4 {[%clk 0:01:15]} 34. a6 {[%clk 0:00:59]}  bxa6 {[%clk 0:01:07]} 35. Rxa6 {[%clk 0:01:00]}  Kd7 {[%clk 0:01:07]} 36. Ne2 {[%clk 0:00:57]}  Rb8 {[%clk 0:00:59]} 37. Kg3 {[%clk 0:00:57]}  Nc5 {[%clk 0:00:35]} 38. Rxg6 {[%clk 0:00:56]}  Ne3 {[%clk 0:00:34]} 39. Nxe5+ {[%clk 0:00:55]}  Ke8 {[%clk 0:00:30]} 40. Rg8+ {[%clk 0:00:55]}  Bf8 {[%clk 0:00:30]} 41. Nxd4 {[%clk 0:00:56]}  Nf1+ {[%clk 0:00:29]} 42. Kf2 {[%clk 0:00:54]}  Nxd2 {[%clk 0:00:30]} 43. Nf5 {[%clk 0:00:47]}  Ndxe4+ {[%clk 0:00:26]} 44. dxe4 {[%clk 0:00:46]}  Nxe4+ {[%clk 0:00:27]} 45. Ke3 {[%clk 0:00:47]}  Nd6 {[%clk 0:00:26]} 46. Nxd6+ {[%clk 0:00:47]}  cxd6 {[%clk 0:00:27]} 47. Rxf8+ {[%clk 0:00:48]}  Kxf8 {[%clk 0:00:24]} 48. Nd7+ {[%clk 0:00:48]}  Ke7 {[%clk 0:00:25]} 49. Nxb8 {[%clk 0:00:49]} 1-0


[Site "https://www.chess.com"]

[Event "Titled Tuesday Blitz January 17 Early 2023"]
[White "Myshakov, Fyodor"]
[Black "Krivonosov, Oleg"]
[WhiteFideId "14111284"]
[BlackFideId "11600349"]
[WhiteElo "2292"]
[BlackElo "2359"]
[Result "0-1"]
[Round "03"]
[TimeControl "180+2"]
[Date "2023.01.17"]
[WhiteClock "0:00:12"]
[BlackClock "0:00:56"]

1. c4 {[%clk 0:02:59]}  e6 {[%clk 0:02:59]} 2. Nc3 {[%clk 0:03:00]}  d5 {[%clk 0:03:00]} 3. cxd5 {[%clk 0:03:00]}  exd5 {[%clk 0:02:59]} 4. d4 {[%clk 0:03:01]}  c6 {[%clk 0:02:59]} 5. Nf3 {[%clk 0:03:02]}  Bf5 {[%clk 0:02:58]} 6. Bf4 {[%clk 0:03:00]}  Be7 {[%clk 0:02:58]} 7. e3 {[%clk 0:03:01]}  Nd7 {[%clk 0:02:57]} 8. Bd3 {[%clk 0:03:01]}  Bxd3 {[%clk 0:02:56]} 9. Qxd3 {[%clk 0:03:02]}  Ngf6 {[%clk 0:02:56]} 10. O-O {[%clk 0:03:02]}  O-O {[%clk 0:02:56]} 11. Ne5 {[%clk 0:02:59]}  Nxe5 {[%clk 0:02:54]} 12. Bxe5 {[%clk 0:02:59]}  Bd6 {[%clk 0:02:52]} 13. Bxd6 {[%clk 0:02:57]}  Qxd6 {[%clk 0:02:51]} 14. Rab1 {[%clk 0:02:54]}  a5 {[%clk 0:02:51]} 15. a3 {[%clk 0:02:49]}  Rfe8 {[%clk 0:02:49]} 16. Na4 {[%clk 0:02:43]}  Ne4 {[%clk 0:02:44]} 17. f3 {[%clk 0:02:33]}  Nf6 {[%clk 0:02:40]} 18. Nc5 {[%clk 0:02:33]}  Qc7 {[%clk 0:02:31]} 19. Rbe1 {[%clk 0:02:23]}  Nd7 {[%clk 0:02:29]} 20. Nxd7 {[%clk 0:02:19]}  Qxd7 {[%clk 0:02:30]} 21. e4 {[%clk 0:02:13]}  dxe4 {[%clk 0:02:28]} 22. Rxe4 {[%clk 0:02:08]}  Rad8 {[%clk 0:02:26]} 23. Rfe1 {[%clk 0:02:03]}  Rxe4 {[%clk 0:02:25]} 24. Rxe4 {[%clk 0:01:51]}  h6 {[%clk 0:02:15]} 25. Qe3 {[%clk 0:01:49]}  f5 {[%clk 0:02:00]} 26. Re7 {[%clk 0:01:39]}  Qxd4 {[%clk 0:01:58]} 27. Qxd4 {[%clk 0:01:32]}  Rxd4 {[%clk 0:01:59]} 28. Rxb7 {[%clk 0:01:33]}  Rd2 {[%clk 0:01:57]} 29. h4 {[%clk 0:01:30]}  h5 {[%clk 0:01:56]} 30. Rb6 {[%clk 0:01:26]}  Rc2 {[%clk 0:01:49]} 31. Ra6 {[%clk 0:01:14]}  Rxb2 {[%clk 0:01:44]} 32. Rxa5 {[%clk 0:01:10]}  g6 {[%clk 0:01:43]} 33. Rc5 {[%clk 0:01:09]}  Rb6 {[%clk 0:01:35]} 34. Kf2 {[%clk 0:01:08]}  Kf7 {[%clk 0:01:35]} 35. Ke3 {[%clk 0:01:08]}  Ke6 {[%clk 0:01:35]} 36. Kf4 {[%clk 0:01:08]}  Kd6 {[%clk 0:01:31]} 37. Rc3 {[%clk 0:01:06]}  c5 {[%clk 0:01:30]} 38. a4 {[%clk 0:00:55]}  Kd5 {[%clk 0:01:25]} 39. g4 {[%clk 0:00:38]}  fxg4 {[%clk 0:01:23]} 40. fxg4 {[%clk 0:00:37]}  Rb4+ {[%clk 0:01:23]} 41. Kf3 {[%clk 0:00:37]}  hxg4+ {[%clk 0:01:14]} 42. Kg3 {[%clk 0:00:37]}  Rxa4 {[%clk 0:01:15]} 43. Rd3+ {[%clk 0:00:37]}  Rd4 {[%clk 0:01:12]} 44. Ra3 {[%clk 0:00:36]}  c4 {[%clk 0:01:10]} 45. Ra5+ {[%clk 0:00:36]}  Ke6 {[%clk 0:01:06]} 46. Rc5 {[%clk 0:00:34]}  Kd6 {[%clk 0:01:06]} 47. Rc8 {[%clk 0:00:32]}  Kd5 {[%clk 0:01:05]} 48. Rd8+ {[%clk 0:00:31]}  Ke4 {[%clk 0:01:05]} 49. Rg8 {[%clk 0:00:26]}  Rd6 {[%clk 0:01:00]} 50. Rc8 {[%clk 0:00:23]}  Kd3 {[%clk 0:00:59]} 51. Kxg4 {[%clk 0:00:24]}  c3 {[%clk 0:01:00]} 52. Kg5 {[%clk 0:00:23]}  c2 {[%clk 0:01:00]} 53. Kg4 {[%clk 0:00:03]}  Kd2 {[%clk 0:00:59]} 54. Kg5 {[%clk 0:00:03]}  c1=Q {[%clk 0:00:58]} 55. Rxc1 {[%clk 0:00:04]}  Kxc1 {[%clk 0:00:58]} 56. Kf4 {[%clk 0:00:05]}  Re6 {[%clk 0:00:56]} 57. Kg4 {[%clk 0:00:05]}  Kd2 {[%clk 0:00:56]} 58. Kf4 {[%clk 0:00:05]}  Ke2 {[%clk 0:00:56]} 59. Kg4 {[%clk 0:00:06]}  Kf2 {[%clk 0:00:56]} 60. Kf4 {[%clk 0:00:07]}  Kg2 {[%clk 0:00:56]} 61. Kg4 {[%clk 0:00:07]}  Kh2 {[%clk 0:00:56]} 62. h5 {[%clk 0:00:07]}  gxh5+ {[%clk 0:00:56]} 63. Kxh5 {[%clk 0:00:08]}  Kg3 {[%clk 0:00:55]} 64. Kg5 {[%clk 0:00:09]}  Re4 {[%clk 0:00:55]} 65. Kf5 {[%clk 0:00:09]}  Kf3 {[%clk 0:00:55]} 66. Kg5 {[%clk 0:00:10]}  Rf4 {[%clk 0:00:55]} 67. Kh5 {[%clk 0:00:11]}  Rg4 {[%clk 0:00:55]} 68. Kh6 {[%clk 0:00:11]}  Kf4 {[%clk 0:00:55]} 69. Kh5 {[%clk 0:00:12]}  Kf5 {[%clk 0:00:55]} 70. Kh6 {[%clk 0:00:11]}  Rg1 {[%clk 0:00:55]} 71. Kh7 {[%clk 0:00:11]}  Kf6 {[%clk 0:00:56]} 72. Kh8 {[%clk 0:00:12]}  Kf7 {[%clk 0:00:56]} 0-1


[Site "https://www.chess.com"]

[Event "Titled Tuesday Blitz January 17 Early 2023"]
[White "Averjanov, Alexey"]
[Black "Ozates, Tuna"]
[WhiteFideId "14109867"]
[BlackFideId "6354521"]
[WhiteElo "2399"]
[BlackElo "2251"]
[Result "1-0"]
[Round "03"]
[TimeControl "180+2"]
[Date "2023.01.17"]
[WhiteClock "0:02:11"]
[BlackClock "0:00:10"]

1. d4 {[%clk 0:03:00]}  Nf6 {[%clk 0:02:59]} 2. c4 {[%clk 0:03:01]}  c5 {[%clk 0:02:59]} 3. Nf3 {[%clk 0:03:00]}  g6 {[%clk 0:02:57]} 4. g3 {[%clk 0:02:59]}  Bg7 {[%clk 0:02:58]} 5. Bg2 {[%clk 0:03:00]}  O-O {[%clk 0:02:58]} 6. O-O {[%clk 0:03:00]}  cxd4 {[%clk 0:02:55]} 7. Nxd4 {[%clk 0:03:01]}  Nc6 {[%clk 0:02:55]} 8. Nc3 {[%clk 0:03:01]}  Qb6 {[%clk 0:02:45]} 9. Nc2 {[%clk 0:02:59]}  d6 {[%clk 0:02:44]} 10. Ne3 {[%clk 0:02:59]}  Be6 {[%clk 0:02:43]} 11. Rb1 {[%clk 0:02:57]}  Rac8 {[%clk 0:02:42]} 12. b3 {[%clk 0:02:57]}  a6 {[%clk 0:02:26]} 13. Bb2 {[%clk 0:02:57]}  Rfd8 {[%clk 0:02:25]} 14. Ncd5 {[%clk 0:02:53]}  Bxd5 {[%clk 0:02:18]} 15. Nxd5 {[%clk 0:02:52]}  Nxd5 {[%clk 0:02:17]} 16. Bxd5 {[%clk 0:02:51]}  e6 {[%clk 0:02:11]} 17. Bxg7 {[%clk 0:02:48]}  Kxg7 {[%clk 0:02:11]} 18. Bxc6 {[%clk 0:02:48]}  Qxc6 {[%clk 0:01:47]} 19. Qd4+ {[%clk 0:02:47]}  e5 {[%clk 0:01:47]} 20. Qd3 {[%clk 0:02:45]}  d5 {[%clk 0:01:46]} 21. cxd5 {[%clk 0:02:45]}  Rxd5 {[%clk 0:01:39]} 22. Qe3 {[%clk 0:02:45]}  Qd7 {[%clk 0:01:21]} 23. Rbc1 {[%clk 0:02:41]}  Rxc1 {[%clk 0:01:21]} 24. Rxc1 {[%clk 0:02:42]}  Rd1+ {[%clk 0:01:21]} 25. Rxd1 {[%clk 0:02:42]}  Qxd1+ {[%clk 0:01:22]} 26. Kg2 {[%clk 0:02:42]}  Qd5+ {[%clk 0:01:22]} 27. f3 {[%clk 0:02:42]}  f6 {[%clk 0:01:15]} 28. Qc3 {[%clk 0:02:41]}  Qd7 {[%clk 0:01:12]} 29. h4 {[%clk 0:02:41]}  h5 {[%clk 0:01:11]} 30. a4 {[%clk 0:02:40]}  Kf7 {[%clk 0:01:06]} 31. Qc4+ {[%clk 0:02:40]}  Kg7 {[%clk 0:01:06]} 32. Qc5 {[%clk 0:02:38]}  Kh6 {[%clk 0:01:00]} 33. Qf8+ {[%clk 0:02:35]}  Qg7 {[%clk 0:01:00]} 34. Qxg7+ {[%clk 0:02:33]}  Kxg7 {[%clk 0:01:00]} 35. Kf2 {[%clk 0:02:33]}  Kf7 {[%clk 0:01:00]} 36. Ke3 {[%clk 0:02:33]}  Ke6 {[%clk 0:01:01]} 37. Kd3 {[%clk 0:02:31]}  Kd5 {[%clk 0:01:00]} 38. b4 {[%clk 0:02:29]}  b5 {[%clk 0:00:55]} 39. e4+ {[%clk 0:02:28]}  Kd6 {[%clk 0:00:55]} 40. axb5 {[%clk 0:02:28]}  axb5 {[%clk 0:00:56]} 41. Ke3 {[%clk 0:02:28]}  Ke6 {[%clk 0:00:56]} 42. f4 {[%clk 0:02:26]}  Kd6 {[%clk 0:00:17]} 43. Kf3 {[%clk 0:02:20]}  Ke6 {[%clk 0:00:16]} 44. g4 {[%clk 0:02:13]}  exf4 {[%clk 0:00:12]} 45. gxh5 {[%clk 0:02:11]}  gxh5 {[%clk 0:00:10]} 46. Kxf4 {[%clk 0:02:11]} 1-0


[Site "https://www.chess.com"]

[Event "Titled Tuesday Blitz January 17 Early 2023"]
[White "Meissner, Felix"]
[Black "Agasarov, Benik"]
[WhiteFideId "24671827"]
[BlackFideId "13314823"]
[WhiteElo "2362"]
[BlackElo "2235"]
[Result "0-1"]
[Round "03"]
[TimeControl "180+2"]
[Date "2023.01.17"]
[WhiteClock "0:00:36"]
[BlackClock "0:00:08"]

1. e4 {[%clk 0:02:55]}  e5 {[%clk 0:02:56]} 2. Nf3 {[%clk 0:02:52]}  Nc6 {[%clk 0:02:56]} 3. d4 {[%clk 0:02:52]}  exd4 {[%clk 0:02:52]} 4. Nxd4 {[%clk 0:02:53]}  Nf6 {[%clk 0:02:46]} 5. Nc3 {[%clk 0:02:53]}  Bb4 {[%clk 0:02:43]} 6. Nxc6 {[%clk 0:02:53]}  bxc6 {[%clk 0:02:44]} 7. Bd3 {[%clk 0:02:53]}  d5 {[%clk 0:02:41]} 8. exd5 {[%clk 0:02:54]}  O-O {[%clk 0:02:41]} 9. O-O {[%clk 0:02:54]}  Bg4 {[%clk 0:02:41]} 10. f3 {[%clk 0:02:54]}  Bh5 {[%clk 0:02:41]} 11. dxc6 {[%clk 0:02:54]}  Qd4+ {[%clk 0:02:41]} 12. Kh1 {[%clk 0:02:54]}  Bxc3 {[%clk 0:02:42]} 13. bxc3 {[%clk 0:02:54]}  Qxc3 {[%clk 0:02:43]} 14. Rb1 {[%clk 0:02:44]}  Bg6 {[%clk 0:02:42]} 15. Qd2 {[%clk 0:02:37]}  Qxc6 {[%clk 0:02:36]} 16. Bxg6 {[%clk 0:02:37]}  hxg6 {[%clk 0:02:36]} 17. Ba3 {[%clk 0:02:37]}  Rfd8 {[%clk 0:02:36]} 18. Qf4 {[%clk 0:02:33]}  Qxc2 {[%clk 0:02:34]} 19. Be7 {[%clk 0:02:30]}  Nd5 {[%clk 0:02:32]} 20. Qh4 {[%clk 0:02:27]}  Ne3 {[%clk 0:02:24]} 21. Rg1 {[%clk 0:02:23]}  Rd1 {[%clk 0:01:58]} 22. Rbxd1 {[%clk 0:02:10]}  Nxd1 {[%clk 0:01:57]} 23. Re1 {[%clk 0:02:08]}  Nf2+ {[%clk 0:01:40]} 24. Kg1 {[%clk 0:02:08]}  Nd3 {[%clk 0:01:40]} 25. Rf1 {[%clk 0:02:01]}  Re8 {[%clk 0:01:39]} 26. Qd4 {[%clk 0:01:52]}  Qe2 {[%clk 0:01:23]} 27. Bh4 {[%clk 0:01:39]}  g5 {[%clk 0:01:16]} 28. Bg3 {[%clk 0:01:39]}  c5 {[%clk 0:01:05]} 29. Qd7 {[%clk 0:01:35]}  c4 {[%clk 0:00:56]} 30. Qc6 {[%clk 0:01:33]}  c3 {[%clk 0:00:50]} 31. Qxc3 {[%clk 0:01:18]}  f5 {[%clk 0:00:26]} 32. h3 {[%clk 0:01:09]}  f4 {[%clk 0:00:19]} 33. Bf2 {[%clk 0:01:06]}  Kh7 {[%clk 0:00:16]} 34. Bxa7 {[%clk 0:01:01]}  Ra8 {[%clk 0:00:16]} 35. Qc7 {[%clk 0:00:46]}  Re8 {[%clk 0:00:08]} 36. Bf2 {[%clk 0:00:40]}  Qxa2 {[%clk 0:00:08]} 37. Qf7 {[%clk 0:00:36]}  Qxf7 {[%clk 0:00:08]} 0-1


[Site "https://www.chess.com"]